bitfinex/quotes_ETHUSD_20241122
["timestamp","ask_amount","ask_price","bid_price","bid_amount"]
[1732311596759,0.55,3283.5,3282.7,0.7872]
[1732311596965,0.28386632,3283.4,3282.8,0.06232549]
[1732311597175,0.55,3283.5,3282.8,0.06232549]
[1732311597353,0.28387749,3283.4,3282.8,0.06232549]
[1732311597691,0.55,3283.5,3282.8,0.06232549]
[1732311597850,0.28388546,3283.4,3282.8,0.06232549]
[1732311598050,0.55,3283.5,3282.8,0.06232549]
[1732311598258,0.55,3283.7,3282.9,0.788]
[1732311598460,0.28389755,3283.6,3282.9,0.788]
[1732311598786,0.28389755,3283.5,3283.0,0.06232549]
[1732311598993,0.55,3283.7,3283.0,0.06232549]
[1732311599143,0.55,3283.5,3283.0,0.06232549]
[1732311599584,0.55,3283.7,3283.0,0.06232549]
[1732311599889,0.55,3283.5,3283.0,0.06232549]
[1732311600087,0.28391152,3283.4,3283.0,0.06232549]
[1732311600249,0.55,3283.7,3283.0,0.06232549]
[1732311600585,0.55,3283.5,3283.0,0.06232549]
[1732311600978,0.2837857,3283.4,3283.0,0.06232549]
[1732311601160,0.55,3283.7,3283.0,0.06232549]
[1732311601502,0.28374016,3283.6,3283.0,0.06232549]
[1732311601660,0.28374016,3283.5,3283.0,0.06232549]
[1732311601991,0.28374016,3283.4,3283.0,0.06232549]
[1732311602152,0.73002627,3283.7,3283.0,0.06232549]
[1732311602353,0.2837405,3283.6,3283.0,0.06232549]
[1732311602682,0.2837405,3283.5,3283.0,0.06232549]
[1732311602987,0.73002627,3283.7,3283.0,0.06232549]
[1732311603192,0.28374232,3283.6,3283.0,0.06232549]
[1732311603349,0.73002627,3283.7,3283.0,0.06232549]
[1732311603350,0.28374232,3283.5,3283.0,0.06232549]
[1732311603547,0.73002627,3283.7,3283.0,0.06232549]
[1732311603776,0.28373224,3283.6,3283.0,0.06232549]
[1732311603988,0.28373224,3283.5,3283.0,0.06232549]
[1732311604186,0.28373224,3283.6,3283.0,0.06232549]
[1732311604486,0.28370573,3283.5,3283.0,0.06232549]
[1732311604689,0.73002627,3283.7,3283.0,0.06232549]
[1732311604899,0.2836853,3283.6,3283.0,0.06232549]
[1732311605254,0.73002627,3283.7,3283.0,0.06232549]
[1732311605495,0.28368399,3283.6,3283.0,0.06232549]
[1732311605696,0.28368399,3283.5,3283.0,0.06232549]
[1732311605998,0.73002627,3283.7,3283.0,0.06232549]
[1732311606167,0.28360367,3283.6,3283.0,0.06232549]
[1732311606490,0.28360367,3283.5,3283.0,0.06232549]
[1732311606796,0.55,3283.7,3283.0,0.06232549]
[1732311607093,0.28359789,3283.6,3283.0,0.06232549]
[1732311607804,0.55,3283.7,3283.0,0.06232549]
[1732311608292,0.28359514,3283.6,3283.0,0.06232549]
[1732311608490,0.55,3283.7,3283.0,0.06232549]
[1732311608491,0.28359514,3283.5,3283.0,0.06232549]
[1732311608702,0.55,3283.7,3283.0,0.06232549]
[1732311608853,0.28360367,3283.6,3283.0,0.06232549]
[1732311609193,0.28360367,3283.5,3283.0,0.06232549]
[1732311609393,0.55,3283.7,3283.0,0.06232549]
[1732311609594,0.28360239,3283.6,3283.0,0.06232549]
[1732311609756,3.195,3285.7,3283.0,0.06232549]
[1732311609757,1.8519,3284.1,3283.1,0.8019]
[1732311610097,0.55,3283.9,3283.1,0.8019]
[1732311610295,0.28360908,3283.8,3283.2,0.06234654]
[1732311610502,0.28360908,3283.7,3283.2,0.06234654]
[1732311610659,1.8519,3284.1,3283.3,0.8196]
[1732311610660,1.03,3284.1,3283.3,0.8196]
[1732311610855,5.38,3285.8,3283.4,0.06232225]
[1732311610856,0.966695,3284.7,3283.4,0.06232225]
[1732311611175,1.10321558,3284.6,3283.5,0.777]
[1732311611379,0.8196,3284.6,3283.5,0.777]
[1732311611695,0.8196,3284.6,3283.7,0.777]
[1732311611904,0.148495,3284.7,3283.8,0.06223482]
[1732311612055,0.148495,3284.7,3283.4,0.00644458]
[1732311612056,0.28340819,3284.6,3283.9,0.777]
[1732311612259,0.925495,3284.7,3283.9,0.777]
[1732311612490,0.925495,3284.7,3284.0,0.06223482]
[1732311613360,0.55,3284.6,3284.0,0.06223482]
[1732311613561,1.05099082,3284.5,3284.0,0.06223482]
[1732311613761,0.7678,3284.5,3284.0,0.06223482]
[1732311614197,0.55,3284.4,3284.0,0.06223482]
[1732311614403,0.55,3284.4,3283.6,0.7916]
[1732311614573,0.55,3284.6,3284.1,0.85379273]
[1732311614780,0.55,3284.6,3284.1,0.7916]
[1732311615101,0.7743295,3284.6,3284.2,0.06219273]
[1732311616316,0.148495,3284.7,3284.2,0.06219273]
[1732311620188,0.8019,3284.6,3284.2,0.06219273]
[1732311620417,0.55,3284.5,3284.2,0.06219273]
[1732311620575,0.8019,3284.6,3284.2,0.06219273]
[1732311620912,0.8019,3284.6,3284.3,0.0620454]
[1732311621217,0.8019,3284.6,3283.8,0.825]
[1732311621373,0.8019,3284.6,3284.4,0.06203407]
[1732311621579,0.55,3284.5,3283.8,0.825]
[1732311621974,0.55,3284.5,3283.5,0.7748]
[1732311622623,0.55,3284.5,3283.4,0.00644458]
[1732311622624,0.55,3284.3,3283.4,0.00644458]
[1732311622793,0.7925,3284.2,3283.4,0.00644458]
[1732311622997,0.7925,3284.2,3283.5,0.8196]
[1732311624117,0.8299,3284.6,3283.5,0.8196]
[1732311624322,0.83290941,3284.5,3283.5,0.8196]
[1732311624503,0.16628094,3284.4,3283.5,0.8196]
[1732311625430,0.8299,3284.6,3283.5,0.8196]
[1732311626215,0.2829523,3284.5,3283.5,0.8196]
[1732311626535,0.7543,3284.4,3283.5,0.8196]
[1732311629024,0.28297793,3284.3,3283.4,0.00644458]
[1732311629328,0.7543,3284.2,3283.4,0.00644458]
[1732311629902,0.7543,3284.0,3283.4,0.00644458]
[1732311630102,0.28295279,3283.9,3283.4,0.00644458]
[1732311630306,0.7543,3284.0,3283.4,0.00644458]
[1732311631325,0.7543,3284.0,3283.5,0.7635]
[1732311631513,0.8298,3284.6,3283.5,0.7635]
[1732311631716,0.28299438,3284.5,3283.5,0.7635]
[1732311632402,0.28299438,3284.4,3283.5,0.7635]
[1732311632746,0.28299438,3284.3,3283.5,0.7635]
[1732311632916,0.8298,3284.6,3283.6,0.09096787]
[1732311633097,0.28300224,3284.5,3283.6,0.09096787]
[1732311638231,0.8298,3284.6,3283.6,0.09096787]
[1732311638436,0.28326336,3284.5,3283.6,0.09096787]
[1732311638966,0.28326336,3284.5,3283.7,0.7543]
[1732311639135,0.28326336,3284.5,3283.7,0.84522092]
[1732311639335,0.28326336,3284.4,3283.7,0.84522092]
[1732311639559,0.28326336,3284.3,3283.7,0.84522092]
[1732311639743,0.8298,3284.6,3283.7,0.84522092]
[1732311639941,0.28338614,3284.5,3283.7,0.84522092]
[1732311640145,0.28338614,3284.4,3283.7,0.84522092]
[1732311640343,0.8298,3284.6,3283.7,0.84522092]
[1732311640551,0.28343073,3284.5,3283.7,0.84522092]
[1732311641077,0.8298,3284.6,3283.7,0.84522092]
[1732311641442,0.28345669,3284.5,3283.7,0.84522092]
[1732311641645,0.28345669,3284.4,3283.7,0.84522092]
[1732311641952,0.8298,3284.6,3283.7,0.84522092]
[1732311642159,0.28346986,3284.5,3283.7,0.84522092]
[1732311642356,0.28346986,3284.4,3283.7,0.84522092]
[1732311642563,0.8298,3284.6,3283.7,0.84522092]
[1732311642769,0.28347338,3284.5,3283.7,0.84522092]
[1732311642949,0.8298,3284.6,3283.7,0.84522092]
[1732311643269,0.28347312,3284.5,3283.7,0.84522092]
[1732311643436,0.28347312,3284.4,3283.7,0.84522092]
[1732311643636,0.28347312,3284.3,3283.7,0.84522092]
[1732311643941,0.28347312,3284.2,3283.7,0.84522092]
[1732311644131,0.8298,3284.6,3283.7,0.84522092]
[1732311644481,0.28345523,3284.5,3283.7,0.84522092]
[1732311644636,0.7973,3284.3,3283.7,0.09092092]
[1732311644955,0.28345523,3284.2,3283.4,0.78484458]
[1732311645155,0.7973,3284.3,3283.5,0.09084322]
[1732311645469,0.28346798,3284.2,3283.5,0.09084322]
[1732311645876,0.7597,3284.6,3283.6,0.8245]
[1732311646039,0.28342577,3284.5,3283.6,0.8245]
[1732311646239,0.28342577,3284.4,3283.8,0.7669]
[1732311646457,0.28342577,3284.3,3283.8,0.7669]
[1732311646664,0.7597,3284.6,3283.8,0.7669]
[1732311646866,0.2834169,3284.5,3283.9,0.09084322]
[1732311647094,0.2834169,3284.4,3283.9,0.09084322]
[1732311647371,0.2834169,3284.3,3283.9,0.09084322]
[1732311647581,0.7597,3284.6,3283.9,0.09084322]
[1732311647785,0.28345433,3284.5,3283.9,0.09084322]
[1732311647981,0.28345433,3284.4,3283.9,0.09084322]
[1732311648280,0.28345433,3284.3,3283.9,0.09084322]
[1732311648581,0.7597,3284.6,3283.9,0.09084322]
[1732311648779,0.2834788,3284.5,3283.9,0.09084322]
[1732311648961,0.2834788,3284.4,3283.9,0.09084322]
[1732311649162,0.2834788,3284.3,3283.9,0.09084322]
[1732311649471,0.28350782,3284.2,3283.9,0.09084322]
[1732311649787,0.7597,3284.6,3283.9,0.09084322]
[1732311650085,0.28351552,3284.5,3283.9,0.09084322]
[1732311650384,0.28351552,3284.4,3283.9,0.09084322]
[1732311650685,0.28351552,3284.3,3283.9,0.09084322]
[1732311650881,0.7597,3284.6,3283.9,0.09084322]
[1732311651196,0.28355603,3284.5,3283.9,0.09084322]
[1732311651488,0.28355603,3284.4,3283.9,0.09084322]
[1732311651693,0.28355603,3284.3,3283.9,0.09084322]
[1732311651893,0.28355603,3284.3,3283.6,0.8142]
[1732311651894,0.28355603,3284.2,3283.6,0.8142]
[1732311652094,0.28355603,3284.1,3284.0,0.09085131]
[1732311652385,0.28355603,3284.1,3284.0,0.09088204]
[1732311652569,1.08055603,3284.1,3283.4,0.00644458]
[1732311652745,0.28355603,3284.0,3283.5,0.09088204]
[1732311652954,0.28355603,3283.9,3283.5,0.09088204]
[1732311653267,0.28355603,3283.8,3283.5,0.09088204]
[1732311653479,0.15341919,3283.9,3283.5,0.09088204]
[1732311653480,0.28355603,3283.7,3283.5,0.09088204]
[1732311653675,0.28330191,3283.6,3283.5,0.09088204]
[1732311653992,0.15341919,3283.9,3283.5,0.09088204]
[1732311654201,0.2833091,3283.6,3283.5,0.09088204]
[1732311655352,0.2833091,3283.8,3283.5,0.09088204]
[1732311655549,0.797,3284.1,3283.5,0.09088204]
[1732311655777,0.28324221,3284.0,3283.5,0.09088204]
[1732311655992,0.43658518,3283.9,3283.5,0.09088204]
[1732311656196,0.28324221,3283.8,3283.5,0.09088204]
[1732311656361,0.28324221,3283.7,3283.5,0.09088204]
[1732311656681,0.28324221,3283.6,3283.5,0.09088204]
[1732311657606,0.28312547,3283.6,3283.5,0.09088204]
[1732311664404,0.7913,3284.6,3283.5,0.09088204]
[1732311664612,0.148495,3284.7,3283.5,0.87708204]
[1732311664613,0.45265905,3284.4,3283.5,0.87708204]
[1732311664810,0.7913,3284.3,3283.5,0.87708204]
[1732311665009,0.28291191,3284.2,3283.5,0.87708204]
[1732311665406,0.28291191,3284.1,3283.5,0.87708204]
[1732311665607,0.7913,3284.3,3283.5,0.87708204]
[1732311665608,0.28291191,3284.0,3283.5,0.87708204]
[1732311665808,0.28291191,3283.9,3283.5,0.87708204]
[1732311666016,0.28291191,3284.2,3283.5,0.87708204]
[1732311666175,0.28291191,3284.1,3283.5,0.87708204]
[1732311666376,0.28291191,3284.0,3283.5,0.87708204]
[1732311666589,0.28291191,3283.9,3283.5,0.87708204]
[1732311666784,0.7913,3284.3,3283.5,0.87708204]
[1732311667007,0.28289465,3284.2,3283.5,0.87708204]
[1732311667218,0.7913,3284.3,3283.5,0.09088204]
[1732311667219,0.28289465,3284.1,3283.5,0.09088204]
[1732311667516,0.28289465,3284.0,3283.5,0.09088204]
[1732311667689,0.7913,3284.3,3283.5,0.09088204]
[1732311667690,0.28289465,3284.2,3283.5,0.09088204]
[1732311667900,0.7913,3284.3,3283.5,0.09088204]
[1732311668522,0.28293804,3284.2,3283.5,0.09088204]
[1732311668687,0.28293804,3284.1,3283.6,0.7862]
[1732311668888,0.7913,3284.6,3283.6,0.7862]
[1732311669094,0.28297736,3284.5,3283.7,0.08806753]
[1732311669289,0.28297736,3284.4,3283.7,0.08806753]
[1732311669514,0.28297736,3284.3,3283.7,0.08806753]
[1732311669717,0.28297736,3284.2,3283.7,0.08806753]
[1732311669928,0.28297736,3284.5,3283.7,0.08806753]
[1732311670222,0.28297736,3284.4,3283.7,0.08806753]
[1732311670520,0.28297736,3284.3,3283.7,0.08806753]
[1732311670737,0.28297736,3284.2,3283.7,0.08806753]
[1732311671021,0.28297736,3284.1,3283.7,0.08806753]
[1732311671226,0.15269782,3284.4,3283.7,0.08806753]
[1732311671715,0.7989,3284.2,3283.7,0.08806753]
[1732311671881,0.28306548,3284.1,3283.7,0.08806753]
[1732311672078,0.28305443,3284.0,3283.7,0.08806753]
[1732311672403,0.28305443,3283.9,3283.7,0.08806753]
[1732311672629,0.28305443,3283.8,3283.7,0.08806753]
[1732311672941,0.28305443,3283.8,3283.7,0.08805458]
[1732311673143,0.28305443,3283.8,3283.4,0.00644458]
[1732311673303,0.28307974,3284.1,3283.5,0.08805458]
[1732311673504,0.28307974,3284.0,3283.5,0.08805458]
[1732311673754,0.28307974,3283.9,3283.5,0.08805458]
[1732311673917,0.28307974,3283.8,3283.5,0.08805458]
[1732311674106,0.28307974,3283.7,3283.5,0.08805458]
[1732311674306,0.7989,3284.2,3283.5,0.08805458]
[1732311674648,0.28303242,3284.1,3283.5,0.08805458]
[1732311674851,0.28303242,3284.0,3283.5,0.08805458]
[1732311675019,0.28303242,3283.9,3283.5,0.08805458]
[1732311675219,0.28303242,3283.8,3283.5,0.08805458]
[1732311675421,0.28303242,3283.7,3283.5,0.08805458]
[1732311675608,0.7989,3284.2,3283.5,0.08805458]
[1732311675810,0.28306629,3284.1,3283.5,0.08805458]
[1732311676045,0.7989,3284.2,3283.5,0.08805458]
[1732311676046,0.28306629,3284.0,3283.5,0.08805458]
[1732311676351,0.15348939,3284.0,3283.5,0.08805458]
[1732311676550,0.28309633,3283.9,3283.5,0.08805458]
[1732311676854,0.28309633,3283.8,3283.5,0.08805458]
[1732311677005,0.15348939,3284.0,3283.5,0.08805458]
[1732311677206,0.28308784,3283.9,3283.5,0.08805458]
[1732311677510,0.28312655,3283.8,3283.5,0.08805458]
[1732311677819,0.28312655,3283.7,3283.5,0.08805458]
[1732311678020,0.28312655,3283.6,3283.5,0.08805458]
[1732311678215,0.28312655,3283.9,3283.5,0.08805458]
[1732311678420,0.28312655,3283.8,3283.5,0.08805458]
[1732311678629,0.15348939,3284.0,3283.5,0.08805458]
[1732311678630,0.28312655,3283.7,3283.5,0.08805458]
[1732311678942,0.26190216,3283.6,3283.5,0.08805458]
[1732311679120,0.45307723,3284.1,3283.5,0.08805458]
[1732311679722,0.7989,3284.2,3283.5,0.08805458]
[1732311680345,0.7989,3284.2,3283.4,0.00644458]
[1732311680533,0.7989,3284.2,3283.5,0.08803191]
[1732311681154,0.7989,3284.2,3283.5,0.89123191]
[1732311686849,1.3512,3284.6,3283.5,0.89123191]
[1732311689676,0.8012,3284.5,3283.5,0.89123191]
[1732311690178,0.8012,3284.5,3283.5,0.08803191]
[1732311690179,0.55,3284.4,3283.5,0.08803191]
[1732311690363,0.7953,3284.3,3283.5,0.08803191]
[1732311690733,0.28328369,3284.2,3283.5,0.08803191]
[1732311690940,0.28328369,3284.1,3283.5,0.08803191]
[1732311691242,0.28328369,3284.0,3283.5,0.08803191]
[1732311691437,0.28328369,3283.9,3283.5,0.08803191]
[1732311691636,0.7953,3284.3,3283.5,0.08803191]
[1732311691863,0.28329213,3283.8,3283.5,0.08803191]
[1732311692071,0.28329213,3283.7,3283.5,0.08803191]
[1732311692384,0.28329213,3283.6,3283.5,0.08803191]
[1732311695587,0.7953,3284.3,3283.5,0.08803191]
[1732311695753,0.28327447,3284.2,3283.5,0.08803191]
[1732311695933,0.7953,3284.3,3283.5,0.08803191]
[1732311695934,0.28327447,3284.1,3283.5,0.08803191]
[1732311696280,0.28327447,3284.0,3283.5,0.08803191]
[1732311696482,0.28327447,3283.9,3283.5,0.08803191]
[1732311696788,0.28327447,3283.8,3283.5,0.08803191]
[1732311697073,0.28327447,3283.7,3283.5,0.08803191]
[1732311697279,0.28327447,3283.6,3283.5,0.08803191]
[1732311699081,1.05177447,3283.6,3283.5,0.08803191]
[1732311699267,1.60177447,3283.6,3283.5,0.08803191]
[1732311699473,1.76195192,3283.6,3283.5,0.08803191]
[1732311699677,1.3185,3283.5,3283.4,0.00644458]
[1732311700181,1.6016932,3283.5,3283.4,0.00644458]
[1732311702994,1.6016932,3283.5,3283.4,0.09182455]
[1732311703166,0.2831932,3283.5,3283.4,0.09182455]
[1732311703369,0.2831932,3283.5,3283.4,0.80834458]
[1732311703567,0.2831932,3283.5,3283.4,0.89371645]
[1732311705564,0.973195,3284.7,3283.4,0.89371645]
[1732311705795,0.28296827,3284.6,3283.4,0.89371645]
[1732311705998,0.28296827,3284.5,3283.4,0.89371645]
[1732311706170,1.07056827,3284.4,3283.4,0.89371645]
[1732311706369,0.28296827,3284.3,3283.4,0.89371645]
[1732311706588,0.28296827,3284.2,3283.4,0.89371645]
[1732311706903,0.28296827,3284.1,3283.4,0.89371645]
[1732311707057,0.148495,3284.7,3283.4,0.09181645]
[1732311707266,0.55,3284.2,3283.4,0.09181645]
[1732311707493,0.28292569,3284.1,3283.4,0.09181645]
[1732311707661,0.28292569,3284.0,3283.4,0.09181645]
[1732311707861,0.28292569,3283.9,3283.4,0.09181645]
[1732311708100,0.55,3284.3,3283.4,0.09181645]
[1732311708404,0.55,3284.1,3283.4,0.00644458]
[1732311708696,0.28292629,3284.0,3283.5,0.08526819]
[1732311708899,0.28292629,3283.9,3283.5,0.08526819]
[1732311709059,0.28292629,3283.8,3283.5,0.08526819]
[1732311709260,0.55,3284.1,3283.5,0.08526819]
[1732311709261,0.28292629,3283.7,3283.5,0.08526819]
[1732311709462,0.28292629,3283.6,3283.5,0.08526819]
[1732311710216,0.28292629,3284.3,3283.5,0.91126819]
[1732311710411,0.28292629,3284.2,3283.5,0.91126819]
[1732311710619,0.28292629,3284.1,3283.5,0.91126819]
[1732311710775,0.28292629,3284.0,3283.5,0.91126819]
[1732311710979,0.28309025,3283.9,3283.5,0.91126819]
[1732311711173,0.959495,3284.7,3283.5,0.91126819]
[1732311711405,0.28304037,3284.6,3283.5,0.91126819]
[1732311711612,0.28304037,3284.5,3283.5,0.91126819]
[1732311711817,0.28304037,3284.4,3283.5,0.91126819]
[1732311711979,0.28304037,3284.3,3283.5,0.91126819]
[1732311712180,0.28304037,3284.2,3283.5,0.91126819]
[1732311712418,0.28291917,3284.1,3283.5,0.91126819]
[1732311712713,0.28291917,3284.0,3283.5,0.91126819]
[1732311712910,0.28291917,3283.9,3283.5,0.91126819]
[1732311713210,1.1331445,3284.7,3283.5,0.91126819]
[1732311713388,0.2828445,3284.6,3283.5,0.91126819]
[1732311713591,0.2828445,3284.5,3283.5,0.91126819]
[1732311713918,0.2828445,3284.4,3283.5,0.91126819]
[1732311714114,0.2828445,3284.3,3283.5,1.10538304]
[1732311714280,0.2828445,3284.2,3283.5,1.10538304]
[1732311714482,0.2828445,3284.1,3283.5,1.10538304]
[1732311714681,0.2828445,3284.0,3283.5,0.91126819]
[1732311714882,0.2828445,3283.9,3283.5,0.91126819]
[1732311715081,0.2828445,3284.6,3283.5,1.10538304]
[1732311715294,0.959495,3284.7,3283.5,1.10538304]
[1732311715295,0.7902,3284.4,3283.5,0.08526819]
[1732311715502,0.8328445,3284.3,3283.5,0.08526819]
[1732311715822,0.55,3284.1,3283.5,0.08526819]
[1732311715976,0.2828445,3284.0,3283.5,0.08526819]
[1732311716180,0.2828445,3283.9,3283.5,0.08526819]
[1732311716379,0.2828445,3283.8,3283.5,0.08526819]
[1732311716684,0.2828445,3283.7,3283.5,0.08526819]
[1732311716886,0.2828445,3283.6,3283.5,0.08526819]
[1732311717595,0.2828445,3284.2,3283.5,0.08526819]
[1732311717796,0.2828445,3284.1,3283.6,0.7742]
[1732311717994,0.2828445,3284.0,3283.7,0.08241438]
[1732311718195,0.2828445,3283.9,3283.7,0.08241438]
[1732311718400,0.916495,3284.7,3283.7,0.08241438]
[1732311718624,0.28289907,3284.6,3283.7,0.08241438]
[1732311718897,0.28289907,3284.5,3283.7,0.08241438]
[1732311719096,0.28289907,3284.4,3283.7,0.08241438]
[1732311719300,0.28289907,3284.3,3283.7,0.08241438]
[1732311719533,0.28289907,3284.2,3283.7,0.08241438]
[1732311719711,0.28289907,3284.1,3283.7,0.08241438]
[1732311720036,0.28289907,3284.0,3283.7,0.08241438]
[1732311720196,0.28289907,3283.9,3283.7,0.08241438]
[1732311720393,1.0858445,3284.7,3283.7,0.08241438]
[1732311720698,0.28293835,3284.6,3283.7,0.08241438]
[1732311720896,0.28293835,3284.5,3283.7,0.08241438]
[1732311721098,0.28293835,3284.4,3283.7,0.08241438]
[1732311721293,0.28282796,3284.3,3283.7,0.08241438]
[1732311721499,0.28282796,3284.2,3283.7,0.08241438]
[1732311721816,0.28284064,3284.1,3283.7,0.08241438]
[1732311722010,0.28284064,3284.0,3283.7,0.08241438]
[1732311722209,0.28284064,3284.6,3283.7,0.08241438]
[1732311722409,0.28284064,3284.5,3283.7,0.08241438]
[1732311722643,0.28284064,3284.4,3283.7,0.08241438]
[1732311722802,0.28284064,3284.3,3283.7,0.08241438]
[1732311723111,1.0858445,3284.7,3283.7,0.08241438]
[1732311723112,0.28284064,3284.2,3283.7,0.08241438]
[1732311723312,1.0858445,3284.7,3283.7,0.08241438]
[1732311723313,0.28284064,3284.6,3283.7,0.08241438]
[1732311723539,0.28284064,3284.5,3283.7,0.08241438]
[1732311723738,0.28284064,3284.4,3283.7,0.08241438]
[1732311723940,0.28284064,3284.3,3283.7,0.08241438]
[1732311724253,0.28284064,3284.2,3283.7,0.08241438]
[1732311724532,0.28284064,3284.1,3283.8,0.7822]
[1732311724695,0.148495,3284.7,3283.8,0.7822]
[1732311724897,0.28275253,3284.6,3284.0,0.7822]
[1732311725100,0.28275253,3284.5,3284.0,0.7822]
[1732311725304,0.28275253,3284.4,3284.0,0.7822]
[1732311725555,0.148495,3284.7,3284.1,0.08225243]
[1732311725836,0.28267505,3284.6,3284.1,0.08225243]
[1732311726404,0.28267505,3284.6,3284.2,0.7822]
[1732311726604,0.28267505,3284.6,3284.3,0.08218767]
[1732311726856,0.28267505,3284.6,3284.4,0.7618]
[1732311727045,0.148495,3284.7,3284.4,0.7618]
[1732311727340,0.148495,3284.7,3284.6,0.7618]
[1732311728003,0.148495,3284.7,3284.6,0.84398443]
[1732311733217,0.148495,3284.7,3284.6,1.04993994]
[1732311733618,0.14615555,3284.7,3284.6,1.59993994]
[1732311734155,0.14615555,3284.7,3284.6,1.63682316]
[1732311736404,1.56041277,3287.1,3285.2,0.55]
[1732311736405,1.213828,3286.1,3285.2,0.55]
[1732311736547,1.213828,3286.1,3285.3,0.8091]
[1732311736861,1.213828,3286.1,3285.3,0.8908426]
[1732311737068,0.78,3287.0,3285.3,0.8908426]
[1732311737357,0.28171357,3286.9,3285.5,0.8091]
[1732311737742,1.09081357,3286.9,3285.7,0.8091]
[1732311738057,0.28171357,3286.8,3285.7,0.8091]
[1732311738268,0.28171357,3286.8,3285.8,0.08172804]
[1732311738426,0.28171357,3286.8,3285.9,0.8091]
[1732311738760,0.49375947,3286.8,3285.9,0.8091]
[1732311738962,0.2120459,3286.8,3286.0,0.08172804]
[1732311739165,1.05874541,3287.0,3286.1,0.7592]
[1732311739327,0.28150742,3286.9,3286.1,0.7592]
[1732311739529,0.28150742,3286.9,3286.2,0.08167791]
[1732311739840,0.28150742,3286.9,3286.1,0.7592]
[1732311739841,0.22476069,3286.9,3286.1,0.7592]
[1732311740253,0.22476069,3286.9,3286.2,0.08166659]
[1732311740578,0.7592,3287.1,3286.2,0.08166659]
[1732311740783,0.28142029,3287.0,3286.1,0.7592]
[1732311741141,0.28142029,3287.0,3286.2,0.08164719]
[1732311741450,0.28142029,3287.0,3286.1,0.7592]
[1732311741853,0.28142029,3287.0,3286.2,0.08164719]
[1732311742374,0.7592,3287.1,3286.1,0.7592]
[1732311742590,1.10507029,3287.0,3286.1,0.7592]
[1732311742769,0.46769732,3286.9,3286.1,0.7592]
[1732311742944,0.28127553,3286.8,3286.1,0.7592]
[1732311743139,0.18642703,3286.9,3286.1,0.7592]
[1732311743456,0.18642703,3286.9,3286.2,0.0814628]
[1732311743906,0.18642703,3286.9,3286.1,0.7592]
[1732311744179,0.18642703,3286.9,3286.3,0.08147736]
[1732311744350,0.8238,3286.8,3285.4,0.7592]
[1732311744554,0.8238,3286.8,3286.4,0.08147736]
[1732311744752,0.8238,3286.8,3285.4,0.7592]
[1732311744753,0.55,3286.7,3285.4,0.7592]
[1732311744958,0.83131038,3286.7,3285.4,0.7592]
[1732311745149,0.44682142,3286.6,3285.5,0.07879992]
[1732311745372,0.16551104,3286.6,3285.4,0.7592]
[1732311745578,0.28137152,3286.5,3285.6,0.07611403]
[1732311745775,0.28137152,3286.5,3285.4,0.7592]
[1732311745952,0.16551104,3286.6,3285.7,0.07611403]
[1732311746141,0.2814886,3286.5,3285.4,0.7592]
[1732311746341,0.2814886,3286.5,3285.8,0.07611403]
[1732311746537,0.2814886,3286.5,3285.4,0.7592]
[1732311746538,0.16551104,3286.6,3285.4,0.7592]
[1732311746843,0.28148348,3286.5,3285.4,0.7592]
[1732311747041,0.28148348,3286.5,3285.5,0.07616578]
[1732311747663,0.7599,3286.4,3285.5,0.07616578]
[1732311751703,0.8295,3286.6,3285.6,0.7574]
[1732311752108,0.8295,3286.6,3285.7,0.07614961]
[1732311752314,0.28207232,3286.5,3285.7,0.07614961]
[1732311755786,0.8295,3286.6,3285.7,0.07614961]
[1732311756493,0.28258939,3286.5,3285.7,0.07614961]
[1732311756689,0.28258939,3286.4,3285.7,0.07614961]
[1732311756914,0.28258939,3286.3,3285.7,0.07614961]
[1732311757085,0.28258939,3286.2,3285.7,0.07614961]
[1732311757425,0.28258939,3286.1,3285.7,0.07614961]
[1732311757629,0.28258939,3286.5,3285.7,0.07614961]
[1732311757808,0.28284099,3286.4,3285.7,0.07614961]
[1732311758127,0.28284099,3286.3,3285.7,0.07614961]
[1732311758425,0.28284099,3286.2,3285.7,0.07614961]
[1732311758715,0.28284099,3286.1,3285.7,0.07614961]
[1732311758952,1.11234099,3286.0,3285.7,0.07614961]
[1732311759083,0.28284099,3285.9,3285.7,0.07614961]
[1732311759282,0.28284099,3285.9,3285.4,0.7574]
[1732311759513,0.28284099,3285.9,3285.8,0.07622562]
[1732311759716,0.28284099,3285.9,3285.4,0.7574]
[1732311759891,0.8295,3286.3,3285.8,0.07622562]
[1732311760098,0.28301,3286.2,3285.4,0.7574]
[1732311760309,0.28301,3286.1,3285.9,0.07622562]
[1732311760494,0.8295,3286.9,3286.0,0.7574]
[1732311760694,0.28310521,3286.8,3286.0,0.83361915]
[1732311760932,0.28310521,3286.7,3286.0,0.83361915]
[1732311761142,0.28310521,3286.6,3286.0,0.83361915]
[1732311761445,0.7592,3287.1,3286.0,0.83361915]
[1732311761599,0.28313045,3287.0,3286.0,2.0293724]
[1732311761797,0.28313045,3286.9,3286.0,2.0293724]
[1732311762135,0.28313045,3286.8,3286.0,0.83361915]
[1732311762439,0.28313045,3286.7,3286.1,0.20090659]
[1732311762648,0.28313045,3286.6,3286.2,0.07617226]
[1732311762849,0.28313045,3286.5,3286.0,0.7574]
[1732311763024,0.28313045,3286.4,3286.3,0.07617226]
[1732311763343,0.28313045,3286.4,3286.0,0.7574]
[1732311763551,0.8295,3286.7,3286.3,0.07617226]
[1732311763712,0.28319395,3286.6,3286.0,0.7574]
[1732311763911,0.28319395,3286.5,3286.4,0.07617226]
[1732311764111,0.28319395,3286.5,3286.0,0.7574]
[1732311764311,0.8295,3286.7,3286.4,0.07617226]
[1732311764540,0.8295,3286.7,3286.0,0.7574]
[1732311764541,0.28320864,3286.6,3286.0,0.7574]
[1732311764843,0.8295,3286.7,3286.0,0.7574]
[1732311765049,0.28320223,3286.6,3286.1,0.07617226]
[1732311765214,0.8295,3286.7,3286.1,0.07617226]
[1732311765215,0.28320223,3286.5,3286.1,0.07617226]
[1732311765616,0.28320223,3286.4,3286.1,0.07617226]
[1732311765941,0.28320223,3286.3,3286.1,0.07617226]
[1732311766121,0.28320223,3286.2,3286.1,0.07617226]
[1732311767066,0.28320223,3286.2,3285.5,1.11806981]
[1732311767368,0.8295,3286.7,3285.4,0.7703]
[1732311767369,0.28320223,3286.1,3285.6,1.30581522]
[1732311767666,0.28320223,3286.0,3285.4,0.7919]
[1732311767873,0.28320223,3286.0,3285.2,0.00644458]
[1732311767874,0.8295,3286.7,3285.7,0.07610109]
[1732311768029,0.28298105,3286.6,3285.6,1.90887824]
[1732311768229,0.8295,3286.7,3285.7,0.07610109]
[1732311768230,0.28298105,3286.5,3285.7,0.07610109]
[1732311768532,0.8295,3286.7,3285.7,0.07610109]
[1732311768533,0.28298105,3286.4,3285.7,0.07610109]